fUST/lending_fUST_20250530
["ID","MTS","AMOUNT","RATE_DAILY","PERIOD"]
[363011478,1748549451065,-7566.48,0.00020273,2]
[363011480,1748549451075,-1104.35,0.00020273,2]
[363011482,1748549451084,-6241.32,0.00020273,2]
[363011484,1748549451094,-430.0,0.00020273,2]
[363011486,1748549451103,-430.0,0.00020273,2]
[363011488,1748549451112,-430.0,0.00020273,2]
[363011490,1748549451122,-430.0,0.00020273,2]
[363011492,1748549451131,-641.57,0.00020273,2]
[363011494,1748549451141,-447.91,0.00020273,2]
[363011496,1748549451150,-1205.76,0.00020273,2]
[363011498,1748549451159,-430.0,0.00020273,2]
[363011500,1748549451169,-430.0,0.00020273,2]
[363011502,1748549451178,-430.0,0.00020273,2]
[363011504,1748549451188,-430.0,0.00020273,2]
[363011506,1748549451197,-3425.09,0.00020273,2]
[363011508,1748549451207,-430.0,0.00020273,2]
[363011510,1748549451216,-430.0,0.00020273,2]
[363011512,1748549451226,-5494.42,0.00020273,2]
[363011514,1748549451235,-151.0,0.00020274,2]
[363011516,1748549451246,-151.0,0.00020274,2]
[363011518,1748549451255,-635.963784,0.00020274,2]
[363011520,1748549451265,-635.963784,0.00020274,2]
[363011522,1748549451275,-151.0,0.00020274,2]
[363011524,1748549451283,-1506.744032,0.00020274,2]
[363011526,1748549451292,-1506.744032,0.00020274,2]
[363011528,1748549451302,-553.0,0.00020274,2]
[363011530,1748549451311,-151.0,0.000203,3]
[363011532,1748549451321,-553.0,0.00020302,2]
[363011534,1748549451331,-571.09610863,0.00020329,2]
[363011536,1748549451340,-151.0,0.000204,3]
[363011538,1748549451349,-3014.44826507,0.00020417,3]
[363011540,1748549451358,-935.448,0.00020427,2]
[363011542,1748549451368,-176.707,0.00020427,2]
[363011545,1748549451379,-10000.0,0.000205,2]
[363011546,1748549451387,-1000.0,0.000205,2]
[363011548,1748549451397,-622.45760105,0.00020521,2]
[363011550,1748549451406,-1200.0,0.00020521,2]
[363011553,1748549451416,-1531.46,0.00020538,3]
[363011554,1748549451426,-765.72,0.00020538,3]
[363011556,1748549451435,-382.86,0.00020538,3]
[363011559,1748549451445,-463.127135,0.00020547,2]
[363011561,1748549451454,-463.127135,0.00020547,2]
[363011563,1748549451463,-151.0,0.00020547,2]
[363011565,1748549451473,-151.0,0.00020547,2]
[363011567,1748549451482,-151.0,0.00020547,2]
[363011569,1748549451492,-270.819095,0.00020547,2]
[363011571,1748549451502,-270.819095,0.00020547,2]
[363011573,1748549451512,-281.172433,0.00020547,2]
[363011575,1748549451521,-281.172433,0.00020547,2]
[363011577,1748549451531,-340.669478,0.00020547,2]
[363011579,1748549451540,-340.669478,0.00020547,2]
[363011581,1748549451550,-424.140348,0.00020547,2]
[363011583,1748549451559,-424.140348,0.00020547,2]
[363011585,1748549451570,-151.0,0.00020547,2]
[363011587,1748549451579,-151.0,0.00020547,2]
[363011589,1748549451588,-260.334711,0.00020547,2]
[363011591,1748549451598,-151.0,0.00020547,2]
[363011593,1748549451608,-151.0,0.00020547,2]
[363011594,1748549451617,-260.334711,0.00020547,2]
[363011597,1748549451626,-151.0,0.00020547,2]
[363011599,1748549451637,-151.0,0.00020547,2]
[363011600,1748549451646,-151.0,0.00020547,2]
[363011603,1748549451656,-151.0,0.00020547,2]
[363011604,1748549451665,-4015.542169,0.00020547,2]
[363011606,1748549451675,-4015.542169,0.00020547,2]
[363011608,1748549451685,-239.490931,0.00020547,2]
[363011611,1748549451695,-239.490931,0.00020547,2]
[363011613,1748549451704,-151.0,0.00020547,2]
[363011615,1748549451713,-151.0,0.00020547,2]
[363011616,1748549451723,-302.068116,0.00020547,2]
[363011619,1748549451733,-302.068116,0.00020547,2]
[363011621,1748549451742,-4029.361053,0.00020547,2]
[363011623,1748549451751,-430.0,0.00020547,2]
[363011625,1748549451760,-151.0,0.00020547,2]
[363011626,1748549451770,-547.18906685,0.00020547,2]
[363011629,1748549451779,-260.551144,0.00020547,2]
[363011631,1748549451788,-151.0,0.00020547,2]
[363011632,1748549451798,-260.551144,0.00020547,2]
[363011635,1748549451807,-430.0,0.00020547,2]
[363011637,1748549451817,-430.0,0.00020547,2]
[363011639,1748549451826,-430.0,0.00020547,2]
[363011640,1748549451835,-151.0,0.00020547,2]
[363011642,1748549451845,-465.65856136,0.00020547,2]
[363011644,1748549451854,-276.452001,0.00020547,2]
[363011646,1748549451864,-1915.52743,0.00020547,2]
[363011649,1748549451874,-276.452001,0.00020547,2]
[363011651,1748549451885,-678.591457,0.00020547,2]
[363011653,1748549451894,-540.0,0.00020547,2]
[363011655,1748549451903,-678.591457,0.00020547,2]
[363011657,1748549451913,-561.60400265,0.00020547,2]
[363011659,1748549451922,-430.0,0.00020547,2]
[363011661,1748549451932,-430.0,0.00020547,2]
[363011663,1748549451941,-422.10572513,0.00020547,2]
[363011664,1748549451950,-151.72815157,0.00020547,2]
[363011667,1748549451960,-490.0,0.00020547,2]
[363011668,1748549451969,-244.505466,0.00020547,2]
[363011670,1748549451979,-430.0,0.00020547,2]
[363011673,1748549451989,-430.0,0.00020547,2]
[363011674,1748549451998,-244.505466,0.00020547,2]
[363011677,1748549452008,-430.0,0.00020547,2]
[363011679,1748549452018,-347.71046366,0.00020547,2]
[363011681,1748549452027,-430.0,0.00020547,2]
[363011683,1748549452037,-430.0,0.00020547,2]
[363011685,1748549452046,-168.8914,0.00020547,2]
[363011686,1748549452056,-530.0,0.00020547,2]
[363011689,1748549452066,-530.0,0.00020547,2]
[363011691,1748549452075,-168.8914,0.00020547,2]
[363011692,1748549452084,-151.405863,0.00020547,2]
[363011694,1748549452094,-430.0,0.00020547,2]
[363011696,1748549452103,-1586.339018,0.00020547,2]
[363011698,1748549452112,-460.0,0.00020547,2]
[363011701,1748549452122,-1586.339018,0.00020547,2]
[363011703,1748549452132,-430.0,0.00020547,2]
[363011705,1748549452142,-430.0,0.00020547,2]
[363011706,1748549452151,-430.0,0.00020547,2]
[363011708,1748549452162,-228.55679547,0.00020547,2]
[363011711,1748549452171,-430.0,0.00020547,2]
[363011713,1748549452182,-430.0,0.00020547,2]
[363011715,1748549452192,-430.0,0.00020547,2]
[363011717,1748549452202,-511.29,0.00020547,2]
[363011719,1748549452212,-430.0,0.00020547,2]
[363011721,1748549452221,-430.0,0.00020547,2]
[363011723,1748549452230,-430.0,0.00020547,2]
[363011725,1748549452239,-430.0,0.00020547,2]
[363011726,1748549452249,-2547.3,0.00020547,2]
[363011728,1748549452258,-430.0,0.00020547,2]
[363011730,1748549452267,-430.0,0.00020547,2]
[363011733,1748549452276,-631.19,0.00020547,2]
[363011734,1748549452286,-430.0,0.00020547,2]
[363011737,1748549452295,-151.0,0.00020547,2]
[363011738,1748549452305,-1493.21,0.00020547,2]
[363011740,1748549452315,-430.0,0.00020547,2]
[363011743,1748549452324,-430.0,0.00020547,2]
[363011744,1748549452334,-430.0,0.00020547,2]
[363011747,1748549452343,-657.73,0.00020547,2]
[363011749,1748549452353,-570.0,0.00020547,2]
[363011751,1748549452363,-151.0,0.00020547,2]
[363011753,1748549452372,-430.0,0.00020547,2]
[363011755,1748549452383,-430.0,0.00020547,2]
[363011757,1748549452392,-430.0,0.00020547,2]
[363011759,1748549452401,-430.0,0.00020547,2]
[363011761,1748549452411,-430.0,0.00020547,2]
[363011762,1748549452420,-151.0,0.00020547,2]
[363011765,1748549452430,-151.0,0.00020547,2]
[363011767,1748549452440,-248.268931,0.00020547,2]
[363011769,1748549452449,-248.268931,0.00020547,2]
[363011771,1748549452458,-1197.968823,0.00020547,2]
[363011773,1748549452468,-1197.968823,0.00020547,2]
[363011774,1748549452477,-1197.968823,0.00020547,2]
[363011777,1748549452489,-1197.968823,0.00020547,2]
[363011779,1748549452499,-430.0,0.00020547,2]
[363011781,1748549452508,-1289.81,0.00020547,2]
[363011782,1748549452518,-151.0,0.00020547,2]
[363011793,1748549452607,-430.0,0.00020547,2]
[363011795,1748549452617,-430.0,0.00020547,2]
[363011796,1748549452626,-430.0,0.00020547,2]
[363011798,1748549452636,-430.0,0.00020547,2]
[363011800,1748549452646,-430.0,0.00020547,2]
[363011802,1748549452656,-1598.38,0.00020547,2]
[363011804,1748549452666,-430.0,0.00020547,2]
[363011807,1748549452676,-2053.27,0.00020547,2]
[363011809,1748549452689,-430.0,0.00020547,2]
[363011811,1748549452698,-470.0,0.00020547,2]
[363011813,1748549452708,-1525.7,0.00020547,2]
[363011815,1748549452717,-566.83,0.00020547,2]
[363011817,1748549452726,-331.54265223,0.00020547,2]
[363011819,1748549452735,-430.0,0.00020547,2]
[363011821,1748549452744,-430.0,0.00020547,2]
[363011823,1748549452755,-924.2,0.00020547,2]
[363011825,1748549452764,-1613.56,0.00020547,2]
[363011827,1748549452773,-635.963784,0.00020547,2]
[363011829,1748549452782,-1663.74,0.00020547,2]
[363011831,1748549452791,-434.48,0.00020547,2]
[363011833,1748549452800,-430.0,0.00020547,2]
[363011835,1748549452809,-635.963784,0.00020547,2]
[363011837,1748549452819,-6345.2,0.00020547,2]
[363011839,1748549452828,-541.63,0.00020547,2]
[363011841,1748549452837,-430.0,0.00020547,2]
[363011843,1748549452846,-835.53,0.00020547,2]
[363011845,1748549452855,-430.0,0.00020547,2]
[363011847,1748549452865,-430.0,0.00020547,2]
[363011849,1748549452874,-697.06,0.00020547,2]
[363011851,1748549452883,-171.211019,0.00020547,2]
[363011853,1748549452892,-171.211019,0.00020547,2]
[363011855,1748549452901,-430.0,0.00020547,2]
[363011857,1748549452910,-719.7,0.00020547,2]
[363011859,1748549452919,-171.211019,0.00020547,2]
[363011861,1748549452928,-171.211019,0.00020547,2]
[363011863,1748549452937,-430.0,0.00020547,2]
[363011865,1748549452947,-430.0,0.00020547,2]
[363011867,1748549452956,-1058.87,0.00020547,2]
[363011869,1748549452965,-430.0,0.00020547,2]
[363011871,1748549452975,-532.23289541,0.00020547,2]
[363011873,1748549452984,-510.0,0.00020547,2]
[363011875,1748549452993,-505.83,0.00020547,2]
[363011877,1748549453002,-4239.46,0.00020547,2]
[363011879,1748549453011,-430.0,0.00020547,2]
[363011881,1748549453020,-430.0,0.00020547,2]
[363011883,1748549453029,-430.0,0.00020547,2]
[363011885,1748549453038,-430.0,0.00020547,2]
[363011887,1748549453048,-151.0,0.00020547,2]
[363011889,1748549453058,-151.0,0.00020547,2]
[363011891,1748549453067,-268.505274,0.00020547,2]
[363011893,1748549453076,-684.87,0.00020547,2]
[363011895,1748549453086,-430.0,0.00020547,2]
[363011897,1748549453095,-430.0,0.00020547,2]
[363011899,1748549453103,-766.46,0.00020547,2]
[363011901,1748549453112,-570.0,0.00020547,2]
[363011903,1748549453122,-430.0,0.00020547,2]
[363011905,1748549453131,-476.02,0.00020547,2]
[363011907,1748549453140,-1884.25,0.00020547,2]
[363011909,1748549453149,-8614.59,0.00020547,2]
[363011911,1748549453158,-430.0,0.00020547,2]
[363011913,1748549453168,-430.0,0.00020547,2]
[363011915,1748549453177,-9593.71,0.00020547,2]
[363011917,1748549453186,-500.0,0.00020547,2]
[363011919,1748549453195,-430.0,0.00020547,2]
[363011921,1748549453205,-430.0,0.00020547,2]
[363011923,1748549453214,-430.0,0.00020547,2]
[363011925,1748549453224,-1506.744032,0.00020547,2]
[363011927,1748549453233,-2177.87,0.00020547,2]
[363011929,1748549453243,-3170.25,0.00020547,2]
[363011931,1748549453252,-1506.744032,0.00020547,2]
[363011933,1748549453261,-731.21,0.00020547,2]
[363011935,1748549453270,-4753.34,0.00020547,2]
[363011937,1748549453280,-3190.48,0.00020547,2]
[363011939,1748549453289,-151.0,0.00020547,2]
[363011941,1748549453298,-151.0,0.00020547,2]
[363011943,1748549453307,-8930.54,0.00020547,2]
[363011945,1748549453316,-430.0,0.00020547,2]
[363011947,1748549453325,-554.55347429,0.00020547,2]
[363011949,1748549453334,-3276.45,0.00020547,2]
[363011951,1748549453344,-1845.48,0.00020547,2]
[363011953,1748549453353,-962.473811,0.00020547,2]
[363011955,1748549453363,-430.0,0.00020547,2]
[363011957,1748549453371,-430.0,0.00020547,2]
[363011959,1748549453380,-1439.05,0.00020547,2]
[363011961,1748549453390,-962.473811,0.00020547,2]
[363011963,1748549453399,-154.4213844,0.00020547,2]
[363011965,1748549453408,-342.862776,0.00020547,2]
[363011967,1748549453417,-5099.18,0.00020547,2]
[363011969,1748549453426,-342.862776,0.00020547,2]
[363011971,1748549453435,-430.0,0.00020547,2]
[363011973,1748549453445,-1486.634382,0.00020547,2]
[363011975,1748549453455,-430.0,0.00020547,2]
[363011977,1748549453464,-1486.634382,0.00020547,2]
[363011979,1748549453473,-2614.13,0.00020547,2]
[363011981,1748549453482,-3219.84,0.00020547,2]
[363011983,1748549453491,-765.63,0.00020547,2]
[363011985,1748549453500,-430.0,0.00020547,2]
[363011987,1748549453509,-3876.68,0.00020547,2]
[363011989,1748549453518,-430.0,0.00020547,2]
[363011991,1748549453528,-495.3,0.00020547,2]
[363011993,1748549453537,-840.29773156,0.00020547,2]
[363012030,1748549453876,-1255.07226844,0.00020547,2]
[363012031,1748549453886,-11864.57,0.00020547,2]
[363012034,1748549453898,-154.980409,0.00020547,2]
[363012036,1748549453908,-725.41,0.00020547,2]
[363012038,1748549453918,-430.0,0.00020547,2]
[363012040,1748549453927,-574.83,0.00020547,2]
[363012042,1748549453936,-674.31,0.00020547,2]
[363012044,1748549453946,-899.16,0.00020547,2]
[363012046,1748549453955,-953.05,0.00020547,2]
[363012048,1748549453964,-430.0,0.00020547,2]
[363012050,1748549453974,-1910.48,0.00020547,2]
[363012052,1748549453983,-1205.75,0.00020547,2]
[363012054,1748549453993,-984.37,0.00020547,2]
[363012056,1748549454002,-7352.62,0.00020547,2]
[363012058,1748549454011,-430.0,0.00020547,2]
[363012060,1748549454021,-594.42,0.00020547,2]
[363012062,1748549454031,-151.0,0.00020547,2]
[363012064,1748549454040,-430.0,0.00020547,2]
[363012066,1748549454049,-1188.65143148,0.00020547,2]
[363012068,1748549454061,-553.83063043,0.00020547,2]
[363012092,1748549454281,-350.0,0.00019178,2]
[363012094,1748549454291,-430.0,0.00019178,2]
[363012096,1748549454300,-430.0,0.00019452,2]
[363012098,1748549454310,-131.69793809,0.00020547,2]
[363012100,1748549454320,-430.0,0.00020547,2]
[363012102,1748549454330,-4767.13886981,0.00020547,2]
[363012104,1748549454341,-7542.76113019,0.00020547,2]
[363012106,1748549454351,-430.0,0.00020547,2]
[363012108,1748549454361,-5190.7,0.00020547,2]
[363012110,1748549454371,-7566.48,0.00020547,2]
[363012113,1748549454382,-5362.8,0.00020547,2]
[363012115,1748549454392,-1104.35,0.00020547,2]
[363012117,1748549454402,-6241.32,0.00020547,2]
[363012119,1748549454412,-430.0,0.00020547,2]
[363012121,1748549454422,-211.17063852,0.00020547,2]
[363012122,1748549454431,-430.0,0.00020547,2]
[363012124,1748549454440,-430.0,0.00020547,2]
[363012126,1748549454450,-641.57,0.00020547,2]
[363012128,1748549454459,-447.91,0.00020547,2]
[363012130,1748549454468,-1205.76,0.00020547,2]
[363012132,1748549454478,-183.92597905,0.00020547,2]
[363012134,1748549454487,-345.55,0.00020547,2]
[363012136,1748549454497,-430.0,0.00020547,2]
[363012139,1748549454506,-490.0,0.00020547,2]
[363012141,1748549454515,-3425.09,0.00020547,2]
[363012143,1748549454525,-470.0,0.00020547,2]
[363012145,1748549454535,-470.0,0.00020547,2]
[363012147,1748549454544,-5494.42,0.00020547,2]
[363012149,1748549454553,-500.0,0.00020568,2]
[363012151,1748549454562,-1513.19229648,0.00020568,2]
[363012153,1748549454572,-500.91468931,0.00020573,2]
[363012155,1748549454581,-500.89721394,0.00020573,2]
[363012157,1748549454590,-3014.44826507,0.0002059,3]
[363012159,1748549454599,-1586.339018,0.00020603,2]
[363012160,1748549454611,-1586.339018,0.00020603,2]
[363012163,1748549454621,-248.268931,0.00020603,2]
[363012165,1748549454631,-248.268931,0.00020603,2]
[363012167,1748549454640,-5000.0,0.00020614,2]
[363012169,1748549454651,-1206.509323,0.00020673,3]
[363012171,1748549454660,-581.35987878,0.00020692,2]
[363012172,1748549454671,-3014.44826507,0.00020762,3]
[363012174,1748549454680,-335.140275,0.00020821,2]
[363012176,1748549454691,-335.140275,0.00020821,2]
[363012178,1748549454700,-151.0,0.00020821,2]
[363012180,1748549454710,-151.0,0.00020821,2]
[363012182,1748549454719,-151.0,0.00020821,2]
[363012184,1748549454728,-151.0,0.00020821,2]
[363012186,1748549454737,-205.166101,0.00020821,2]
[363012188,1748549454746,-205.166101,0.00020821,2]
[363012190,1748549454756,-157.139693,0.00020821,2]
[363012192,1748549454765,-157.139693,0.00020821,2]
[363012194,1748549454776,-1153.678468,0.00020821,2]
[363012196,1748549454785,-1153.678468,0.00020821,2]
[363012198,1748549454794,-151.0,0.00020821,2]
[363012200,1748549454803,-239.490931,0.00020821,2]
[363012202,1748549454813,-239.490931,0.00020821,2]
[363012204,1748549454822,-151.0,0.00020821,2]
[363012206,1748549454831,-151.0,0.00020821,2]
[363012208,1748549454841,-302.068116,0.00020821,2]
[363012210,1748549454852,-302.068116,0.00020821,2]
[363012212,1748549454861,-4029.361053,0.00020821,2]
[363012214,1748549454871,-430.0,0.00020821,2]
[363012216,1748549454881,-151.0,0.00020821,2]
[363012218,1748549454890,-260.551144,0.00020821,2]
[363012220,1748549454899,-260.551144,0.00020821,2]
[363012222,1748549454909,-430.0,0.00020821,2]
[363012224,1748549454919,-430.0,0.00020821,2]
[363012226,1748549454928,-430.0,0.00020821,2]
[363012228,1748549454938,-320.97949,0.00020821,2]
[363012230,1748549454947,-320.97949,0.00020821,2]
[363012232,1748549454957,-151.0,0.00020821,2]
[363012234,1748549454967,-1915.52743,0.00020821,2]
[363012236,1748549454977,-678.591457,0.00020821,2]
[363012238,1748549454987,-678.591457,0.00020821,2]
[363012240,1748549454996,-151.0,0.00020821,2]
[363012242,1748549455005,-151.0,0.00020821,2]
[363012244,1748549455015,-550.0,0.00020821,2]
[363012246,1748549455024,-430.0,0.00020821,2]
[363012248,1748549455034,-151.0,0.00020821,2]
[363012250,1748549455044,-244.505466,0.00020821,2]
[363012252,1748549455054,-430.0,0.00020821,2]
[363012254,1748549455064,-430.0,0.00020821,2]
[363012256,1748549455074,-244.505466,0.00020821,2]
[363012257,1748549455083,-490.0,0.00020821,2]
[363012258,1748549455092,-338.33931887,0.00020821,2]
[363012259,1748549455101,-450.0,0.00020821,2]
[363012260,1748549455189,-168.8914,0.00020821,2]
[363012262,1748549455198,-168.8914,0.00020821,2]
[363012263,1748549455208,-430.0,0.00020821,2]
[363012265,1748549455218,-1586.339018,0.00020821,2]
[363012267,1748549455227,-1586.339018,0.00020821,2]
[363012269,1748549455236,-261.47,0.00020821,2]
[363012271,1748549455245,-388.709724,0.00020821,2]
[363012273,1748549455255,-262.046232,0.00020821,2]
[363012275,1748549455264,-262.046232,0.00020821,2]
[363012277,1748549455273,-430.0,0.00020821,2]
[363012278,1748549455283,-430.0,0.00020821,2]
[363012280,1748549455292,-430.0,0.00020821,2]
[363012282,1748549455302,-430.0,0.00020821,2]
[363012284,1748549455311,-511.29,0.00020821,2]
[363012287,1748549455321,-415.9081,0.00020821,2]
[363012288,1748549455331,-430.0,0.00020821,2]
[363012290,1748549455340,-430.0,0.00020821,2]
[363012292,1748549455349,-2547.3,0.00020821,2]
[363012294,1748549455358,-430.0,0.00020821,2]
[363012296,1748549455368,-430.0,0.00020821,2]
[363012298,1748549455377,-631.19,0.00020821,2]
[363012300,1748549455386,-430.0,0.00020821,2]
[363012302,1748549455394,-151.0,0.00020821,2]
[363012304,1748549455403,-1493.21,0.00020821,2]
[363012306,1748549455412,-430.0,0.00020821,2]
[363012308,1748549455421,-430.0,0.00020821,2]
[363012310,1748549455430,-430.0,0.00020821,2]
[363012312,1748549455439,-657.73,0.00020821,2]
[363012314,1748549455448,-151.0,0.00020821,2]
[363012316,1748549455457,-430.0,0.00020821,2]
[363012318,1748549455466,-451.25266767,0.00020821,2]
[363012320,1748549455476,-430.0,0.00020821,2]
[363012322,1748549455485,-430.0,0.00020821,2]
[363012324,1748549455494,-430.0,0.00020821,2]
[363012326,1748549455503,-151.0,0.00020821,2]
[363012328,1748549455512,-248.268931,0.00020821,2]
[363012330,1748549455521,-248.268931,0.00020821,2]
[363012332,1748549455530,-1197.968823,0.00020821,2]
[363012334,1748549455539,-1197.968823,0.00020821,2]
[363012336,1748549455548,-430.0,0.00020821,2]
[363012338,1748549455558,-1289.81,0.00020821,2]
[363012340,1748549455567,-151.0,0.00020821,2]
[363012342,1748549455576,-430.0,0.00020821,2]
[363012344,1748549455585,-430.0,0.00020821,2]
[363012346,1748549455595,-430.0,0.00020821,2]
[363012348,1748549455605,-430.0,0.00020821,2]
[363012350,1748549455616,-430.0,0.00020821,2]
[363012351,1748549455624,-1598.38,0.00020821,2]
[363012353,1748549455633,-430.0,0.00020821,2]
[363012355,1748549455642,-2053.27,0.00020821,2]
[363012357,1748549455652,-1525.7,0.00020821,2]
[363012359,1748549455662,-566.83,0.00020821,2]
[363012361,1748549455671,-178.15928826,0.00020821,2]
[363012363,1748549455681,-430.0,0.00020821,2]
[363012365,1748549455692,-924.2,0.00020821,2]
[363012367,1748549455702,-1613.56,0.00020821,2]
[363012369,1748549455711,-635.963784,0.00020821,2]
[363012371,1748549455721,-1663.74,0.00020821,2]
[363012373,1748549455731,-434.48,0.00020821,2]
[363012375,1748549455741,-430.0,0.00020821,2]
[363012377,1748549455751,-635.963784,0.00020821,2]
[363012379,1748549455760,-541.63,0.00020821,2]
[363012381,1748549455769,-566.05103504,0.00020821,2]
[363012383,1748549455779,-835.53,0.00020821,2]
[363012385,1748549455788,-430.0,0.00020821,2]
[363012387,1748549455798,-430.0,0.00020821,2]
[363012389,1748549455807,-697.06,0.00020821,2]
[363012391,1748549455816,-171.211019,0.00020821,2]
[363012393,1748549455826,-289.36967264,0.00020821,2]
[363012395,1748549455835,-719.7,0.00020821,2]
[363012397,1748549455844,-171.211019,0.00020821,2]
[363012399,1748549455854,-430.0,0.00020821,2]
[363012401,1748549455863,-430.0,0.00020821,2]
[363012403,1748549455872,-1058.87,0.00020821,2]
[363012405,1748549455881,-430.0,0.00020821,2]
[363012407,1748549455891,-505.83,0.00020821,2]
[363012409,1748549455900,-4239.46,0.00020821,2]
[363012411,1748549455910,-430.0,0.00020821,2]
[363012413,1748549455919,-430.0,0.00020821,2]
[363012415,1748549455928,-430.0,0.00020821,2]
[363012417,1748549455938,-430.0,0.00020821,2]
[363012419,1748549455946,-151.0,0.00020821,2]
[363012421,1748549455955,-151.0,0.00020821,2]
[363012423,1748549455965,-684.87,0.00020821,2]
[363012425,1748549455974,-430.0,0.00020821,2]
[363012427,1748549455984,-450.0,0.00020821,2]
[363012429,1748549455993,-766.46,0.00020821,2]
[363012431,1748549456003,-226.13170922,0.00020821,2]
[363012433,1748549456012,-1884.25,0.00020821,2]
[363012435,1748549456022,-8614.59,0.00020821,2]
[363012437,1748549456031,-430.0,0.00020821,2]
[363012439,1748549456040,-430.0,0.00020821,2]
[363012441,1748549456049,-9593.71,0.00020821,2]
[363012443,1748549456059,-500.0,0.00020821,2]
[363012445,1748549456068,-430.0,0.00020821,2]
[363012447,1748549456078,-430.0,0.00020821,2]
[363012449,1748549456087,-430.0,0.00020821,2]
[363012451,1748549456096,-2177.87,0.00020821,2]
[363012453,1748549456105,-1506.744032,0.00020821,2]
[363012455,1748549456115,-3170.25,0.00020821,2]
[363012457,1748549456124,-1506.744032,0.00020821,2]
[363012459,1748549456134,-731.21,0.00020821,2]
[363012461,1748549456143,-4753.34,0.00020821,2]
[363012463,1748549456153,-3190.48,0.00020821,2]
[363012465,1748549456162,-151.0,0.00020821,2]
[363012466,1748549456172,-151.0,0.00020821,2]
[363012468,1748549456181,-8930.54,0.00020821,2]
[363012470,1748549456191,-430.0,0.00020821,2]
[363012472,1748549456200,-3276.45,0.00020821,2]
[363012474,1748549456210,-1845.48,0.00020821,2]
[363012476,1748549456219,-962.473811,0.00020821,2]
[363012478,1748549456229,-430.0,0.00020821,2]
[363012480,1748549456238,-430.0,0.00020821,2]
[363012482,1748549456248,-1439.05,0.00020821,2]
[363012484,1748549456258,-962.473811,0.00020821,2]
[363012486,1748549456267,-342.862776,0.00020821,2]
[363012488,1748549456277,-5099.18,0.00020821,2]
[363012490,1748549456286,-430.0,0.00020821,2]
[363012492,1748549456296,-342.862776,0.00020821,2]
[363012494,1748549456305,-1486.634382,0.00020821,2]
[363012496,1748549456314,-430.0,0.00020821,2]
[363012498,1748549456324,-1191.63010789,0.00020821,2]
[363012509,1748549456415,-295.00427411,0.00020821,2]
[363012510,1748549456424,-3.55017432,0.00020821,2]
[363012602,1748549457310,-1651.14646968,0.00020821,2]
[363012603,1748549457327,-959.433356,0.00020821,2]
[363012604,1748549457342,-3219.84,0.00020821,2]
[363012605,1748549457356,-765.63,0.00020821,2]
[363012606,1748549457370,-430.0,0.00020821,2]
[363012607,1748549457384,-3876.68,0.00020821,2]
[363012608,1748549457398,-430.0,0.00020821,2]
[363012609,1748549457412,-495.3,0.00020821,2]
[363012610,1748549457426,-2095.37,0.00020821,2]
[363012611,1748549457441,-11864.57,0.00020821,2]
[363012612,1748549457455,-725.41,0.00020821,2]
[363012613,1748549457469,-430.0,0.00020821,2]
[363012614,1748549457483,-574.83,0.00020821,2]
[363012615,1748549457497,-674.31,0.00020821,2]
[363012616,1748549457510,-899.16,0.00020821,2]
[363012617,1748549457524,-953.05,0.00020821,2]